fUSD/lending_fUSD_20250814
["ID","MTS","AMOUNT","RATE_DAILY","PERIOD"]
[379193483,1755181849540,-400.0,0.00027397,2]
[379193484,1755181849550,-400.0,0.00027397,2]
[379193485,1755181849560,-472.47,0.00027397,2]
[379193486,1755181849570,-2213.46,0.00027397,2]
[379193487,1755181849580,-409.66183507,0.00027397,2]
[379193488,1755181849589,-2298.28,0.00027397,2]
[379193489,1755181849599,-2749.46,0.00027397,2]
[379193490,1755181849608,-2318.82,0.00027397,2]
[379193491,1755181849618,-463.38,0.00027397,2]
[379193492,1755181849630,-2440.89,0.00027397,2]
[379193493,1755181849640,-400.0,0.00027397,2]
[379193494,1755181849651,-400.0,0.00027397,2]
[379193495,1755181849661,-400.0,0.00027397,2]
[379193496,1755181849671,-1513.48,0.00027397,2]
[379193497,1755181849681,-400.0,0.00027397,2]
[379193498,1755181849691,-400.0,0.00027397,2]
[379193499,1755181849701,-528.97,0.00027397,2]
[379193500,1755181849711,-4077.76,0.00027397,2]
[379193501,1755181849721,-400.0,0.00027397,2]
[379193502,1755181849730,-848.2,0.00027397,2]
[379193503,1755181849740,-2408.41,0.00027397,2]
[379193504,1755181849750,-904.5,0.00027397,2]
[379193505,1755181849760,-1584.32,0.00027397,2]
[379193506,1755181849769,-400.0,0.00027397,2]
[379193507,1755181849779,-957.51,0.00027397,2]
[379193508,1755181849788,-400.0,0.00027397,2]
[379193509,1755181849798,-920.9,0.00027397,2]
[379193510,1755181849807,-400.0,0.00027397,2]
[379193511,1755181849817,-1219.73,0.00027397,2]
[379193512,1755181849827,-400.0,0.00027397,2]
[379193513,1755181849837,-400.0,0.00027397,2]
[379193514,1755181849847,-400.0,0.00027397,2]
[379193515,1755181849857,-1182.97,0.00027397,2]
[379193516,1755181849867,-400.0,0.00027397,2]
[379193517,1755181849878,-643.22,0.00027397,2]
[379193518,1755181849889,-2749.48,0.00027397,2]
[379193519,1755181849898,-400.0,0.00027397,2]
[379193520,1755181849908,-512.46,0.00027397,2]
[379193521,1755181849919,-500.0,0.00027397,2]
[379193522,1755181849928,-1442.69,0.00027397,2]
[379193523,1755181849938,-400.0,0.00027397,2]
[379193524,1755181849948,-3624.64,0.00027397,2]
[379193525,1755181849958,-401.98615503,0.00027397,2]
[379193526,1755181849968,-400.0,0.00027397,2]
[379193527,1755181849978,-500.0,0.00027397,2]
[379193528,1755181849988,-500.0,0.00027397,2]
[379193529,1755181849999,-500.0,0.00027397,2]
[379193530,1755181850010,-500.0,0.00027397,2]
[379193531,1755181850020,-400.0,0.00027397,2]
[379193532,1755181850030,-500.0,0.00027397,2]
[379193533,1755181850039,-532.03,0.00027397,2]
[379193534,1755181850050,-500.0,0.00027397,2]
[379193535,1755181850059,-400.0,0.00027397,2]
[379193536,1755181850070,-400.0,0.00027397,2]
[379193537,1755181850081,-400.0,0.00027397,2]
[379193538,1755181850091,-2106.86,0.00027397,2]
[379193539,1755181850101,-400.0,0.00027397,2]
[379193540,1755181850112,-400.0,0.00027397,2]
[379193541,1755181850122,-400.0,0.00027397,2]
[379193542,1755181850135,-1940.09,0.00027397,2]
[379193543,1755181850145,-1561.91,0.00027397,2]
[379193544,1755181850155,-400.0,0.00027397,2]
[379193545,1755181850166,-400.0,0.00027397,2]
[379193546,1755181850176,-400.0,0.00027397,2]
[379193547,1755181850186,-400.0,0.00027397,2]
[379193548,1755181850197,-750.86,0.00027397,2]
[379193549,1755181850207,-1044.95,0.00027397,2]
[379193550,1755181850217,-400.0,0.00027397,2]
[379193551,1755181850227,-571.61,0.00027397,2]
[379193552,1755181850237,-1719.61,0.00027397,2]
[379193553,1755181850247,-400.0,0.00027397,2]
[379193554,1755181850257,-858.25,0.00027397,2]
[379193555,1755181850269,-2293.2,0.00027397,2]
[379193556,1755181850279,-1061.11,0.00027397,2]
[379193557,1755181850290,-400.0,0.00027397,2]
[379193558,1755181850300,-400.0,0.00027397,2]
[379193559,1755181850310,-400.0,0.00027397,2]
[379193560,1755181850321,-400.0,0.00027397,2]
[379193561,1755181850331,-1802.22,0.00027397,2]
[379193562,1755181850341,-1994.9,0.00027397,2]
[379193563,1755181850351,-819.06,0.00027397,2]
[379193564,1755181850362,-400.0,0.00027397,2]
[379193565,1755181850372,-2471.17,0.00027397,2]
[379193566,1755181850383,-438.43,0.00027397,2]
[379193567,1755181850394,-1539.27,0.00027397,2]
[379193568,1755181850404,-2660.31,0.00027397,2]
[379193569,1755181850415,-650.96,0.00027397,2]
[379193570,1755181850425,-400.0,0.00027397,2]
[379193571,1755181850436,-2926.28,0.00027397,2]
[379193572,1755181850445,-400.0,0.00027397,2]
[379193573,1755181850456,-400.0,0.00027397,2]
[379193574,1755181850466,-400.0,0.00027397,2]
[379193575,1755181850476,-400.0,0.00027397,2]
[379193576,1755181850486,-1497.56,0.00027397,2]
[379193577,1755181850496,-400.0,0.00027397,2]
[379193578,1755181850506,-2258.99,0.00027397,2]
[379193579,1755181850516,-400.0,0.00027397,2]
[379193580,1755181850526,-807.2,0.00027397,2]
[379193581,1755181850537,-943.88,0.00027397,2]
[379193582,1755181850547,-400.0,0.00027397,2]
[379193583,1755181850557,-400.0,0.00027397,2]
[379193584,1755181850568,-406.2,0.00027397,2]
[379193585,1755181850579,-400.0,0.00027397,2]
[379193586,1755181850590,-959.93,0.00027397,2]
[379193587,1755181850602,-4168.69,0.00027397,2]
[379193588,1755181850613,-400.0,0.00027397,2]
[379193589,1755181850625,-2665.53,0.00027397,2]
[379193590,1755181850645,-532.22,0.00027397,2]
[379193591,1755181850657,-400.0,0.00027397,2]
[379193592,1755181850668,-400.0,0.00027397,2]
[379193593,1755181850679,-400.0,0.00027397,2]
[379193594,1755181850690,-496.51,0.00027397,2]
[379193595,1755181850701,-151.0,0.00027397,7]
[379193596,1755181850711,-411.51108481,0.00027397,2]
[379193597,1755181850722,-965.5,0.00027397,2]
[379193598,1755181850734,-1042.24,0.00027397,2]
[379193599,1755181850745,-1690.89,0.00027397,2]
[379193600,1755181850756,-400.0,0.00027397,2]
[379193601,1755181850766,-1462.92,0.00027397,2]
[379193602,1755181850776,-488.92,0.00027397,2]
[379193603,1755181850787,-1258.62,0.00027397,2]
[379193604,1755181850797,-400.0,0.00027397,2]
[379193605,1755181850806,-986.48,0.00027397,2]
[379193606,1755181850817,-995.72,0.00027397,2]
[379193607,1755181850827,-3453.68,0.00027397,2]
[379193608,1755181850838,-558.22,0.00027397,2]
[379193609,1755181850847,-640.62,0.00027397,2]
[379193610,1755181850857,-151.0,0.00027397,7]
[379193611,1755181850867,-400.0,0.00027397,2]
[379193612,1755181850881,-1700.1,0.00027397,2]
[379193613,1755181850891,-400.0,0.00027397,2]
[379193614,1755181850901,-775.07,0.00027397,2]
[379193615,1755181850912,-400.0,0.00027397,2]
[379193616,1755181850922,-453.31,0.00027397,2]
[379193617,1755181850932,-499.88,0.00027397,2]
[379193618,1755181850943,-2263.62,0.00027397,2]
[379193619,1755181850955,-665.11,0.00027397,2]
[379193620,1755181850965,-1481.64,0.00027397,2]
[379193621,1755181850975,-1875.37,0.00027397,2]
[379193622,1755181850985,-856.9,0.00027397,2]
[379193623,1755181850995,-1520.18,0.00027397,2]
[379193624,1755181851008,-619.7,0.00027397,2]
[379193625,1755181851018,-400.0,0.00027397,2]
[379193626,1755181851029,-400.0,0.00027397,2]
[379193627,1755181851039,-1329.63,0.00027397,2]
[379193628,1755181851050,-400.0,0.00027397,2]
[379193629,1755181851066,-400.0,0.00027397,2]
[379193630,1755181851076,-2000.0,0.00027397,30]
[379193631,1755181851087,-400.0,0.00027397,2]
[379193632,1755181851097,-1173.16,0.00027397,2]
[379193633,1755181851107,-1030.61,0.00027397,2]
[379193634,1755181851117,-2972.3,0.00027397,2]
[379193635,1755181851133,-400.0,0.00027397,2]
[379193636,1755181851143,-478.08,0.00027397,2]
[379193637,1755181851153,-5330.78,0.00027397,2]
[379193638,1755181851164,-1553.3,0.00027397,2]
[379193639,1755181851175,-1096.55,0.00027397,2]
[379193640,1755181851189,-400.0,0.00027397,2]
[379193641,1755181851199,-400.0,0.00027397,2]
[379193642,1755181851210,-400.0,0.00027397,2]
[379193643,1755181851220,-400.0,0.00027397,2]
[379193644,1755181851230,-400.0,0.00027397,2]
[379193645,1755181851240,-3214.02,0.00027397,2]
[379193646,1755181851250,-400.0,0.00027397,2]
[379193647,1755181851261,-762.41,0.00027397,2]
[379193648,1755181851271,-445.42,0.00027397,2]
[379193649,1755181851281,-2036.37,0.00027397,2]
[379193650,1755181851292,-2595.38,0.00027397,2]
[379193651,1755181851302,-400.0,0.00027397,2]
[379193652,1755181851314,-400.0,0.00027397,2]
[379193653,1755181851324,-400.0,0.00027397,2]
[379193654,1755181851335,-400.0,0.00027397,2]
[379193655,1755181851346,-801.96,0.00027397,2]
[379193656,1755181851356,-400.0,0.00027397,2]
[379193657,1755181851367,-403.14,0.00027397,2]
[379193658,1755181851382,-830.24,0.00027397,2]
[379193659,1755181851392,-400.0,0.00027397,2]
[379193660,1755181851402,-400.0,0.00027397,2]
[379193661,1755181851412,-308.22739431,0.00027397,2]
[379193662,1755181851423,-4161.09,0.00027397,2]
[379193663,1755181851434,-400.0,0.00027397,2]
[379193664,1755181851444,-850.35,0.00027397,2]
[379193665,1755181851455,-1818.12,0.00027397,2]
[379193666,1755181851465,-400.0,0.00027397,2]
[379193667,1755181851475,-1981.48,0.00027397,2]
[379193668,1755181851485,-1562.84,0.00027397,2]
[379193669,1755181851495,-617.05,0.00027397,2]
[379193670,1755181851505,-2487.88,0.00027397,2]
[379193671,1755181851516,-409.01,0.00027397,2]
[379193672,1755181851526,-971.43,0.00027397,2]
[379193673,1755181851536,-400.0,0.00027397,2]
[379193674,1755181851546,-400.0,0.00027397,2]
[379193675,1755181851556,-400.0,0.00027397,2]
[379193676,1755181851566,-2593.86,0.00027397,2]
[379193677,1755181851576,-686.64,0.00027397,2]
[379193678,1755181851586,-1121.53,0.00027397,2]
[379193679,1755181851596,-2909.31,0.00027397,2]
[379193680,1755181851606,-400.0,0.00027397,2]
[379193681,1755181851616,-809.319882,0.00027397,7]
[379193682,1755181851626,-809.65,0.00027397,2]
[379193683,1755181851641,-400.0,0.00027397,2]
[379193684,1755181851651,-3381.49,0.00027397,2]
[379193685,1755181851660,-400.0,0.00027397,2]
[379193686,1755181851670,-400.0,0.00027397,2]
[379193687,1755181851679,-400.0,0.00027397,2]
[379193688,1755181851690,-518.04,0.00027397,2]
[379193689,1755181851699,-305.08,0.00027397,2]
[379193690,1755181851710,-400.0,0.00027397,2]
[379193691,1755181851720,-400.0,0.00027397,2]
[379193692,1755181851730,-1725.85,0.00027397,2]
[379193693,1755181851741,-809.319882,0.00027397,7]
[379193694,1755181851751,-500.0,0.00027397,2]
[379193695,1755181851760,-500.0,0.00027397,2]
[379193696,1755181851770,-500.0,0.00027397,2]
[379193697,1755181851780,-3324.36,0.00027397,2]
[379193698,1755181851790,-500.0,0.00027397,2]
[379193699,1755181851800,-309.33817307,0.00027397,2]
[379193700,1755181851810,-400.0,0.00027397,2]
[379193701,1755181851820,-1725.13,0.00027397,2]
[379193702,1755181851830,-1048.43,0.00027397,2]
[379193703,1755181851840,-4950.11062767,0.00027397,2]
[379193704,1755181851850,-400.0,0.00027397,2]
[379193705,1755181851860,-400.0,0.00027397,2]
[379193706,1755181851870,-644.97,0.00027397,2]
[379193707,1755181851883,-400.0,0.00027397,2]
[379193708,1755181851893,-400.0,0.00027397,2]
[379193709,1755181851903,-744.65,0.00027397,2]
[379193710,1755181851913,-914.12,0.00027397,2]
[379193711,1755181851923,-2214.91,0.00027397,2]
[379193712,1755181851933,-743.98,0.00027397,2]
[379193713,1755181851943,-849.4,0.00027397,2]
[379193714,1755181851953,-3654.33,0.00027397,2]
[379193715,1755181851963,-400.0,0.00027397,2]
[379193716,1755181851973,-3589.84,0.00027397,2]
[379193717,1755181852331,-400.0,0.00027397,2]
[379193718,1755181852353,-400.0,0.00027397,2]
[379193719,1755181852363,-400.0,0.00027397,2]
[379193720,1755181852373,-3373.44,0.00027397,2]
[379193721,1755181852386,-1248.06,0.00027397,2]
[379193722,1755181852395,-400.0,0.00027397,2]
[379193723,1755181852405,-415.33,0.00027397,2]
[379193724,1755181852415,-500.0,0.00027397,2]
[379193725,1755181852424,-400.0,0.00027397,2]
[379193726,1755181852434,-859.95,0.00027397,2]
[379193727,1755181852445,-400.0,0.00027397,2]
[379193728,1755181852455,-3211.8,0.00027397,2]
[379193729,1755181852464,-400.0,0.00027397,2]
[379193730,1755181852474,-1516.95,0.00027397,2]
[379193731,1755181852484,-3301.73,0.00027397,2]
[379193732,1755181852494,-1124.44,0.00027397,2]
[379193733,1755181852504,-530.64,0.00027397,2]
[379193734,1755181852514,-400.0,0.00027397,2]
[379193735,1755181852526,-2740.77,0.00027397,2]
[379193736,1755181852536,-2267.84,0.00027397,2]
[379193737,1755181852546,-400.0,0.00027397,2]
[379193738,1755181852555,-1155.1,0.00027397,2]
[379193739,1755181852564,-400.0,0.00027397,2]
[379193740,1755181852574,-2092.05,0.00027397,2]
[379193741,1755181852584,-930.9,0.00027397,2]
[379193742,1755181852594,-479.76,0.00027397,2]
[379193743,1755181852603,-2529.700673,0.00027397,7]
[379193744,1755181852612,-1713.35,0.00027397,2]
[379193745,1755181852622,-400.0,0.00027397,2]
[379193746,1755181852635,-1408.83,0.00027397,2]
[379193747,1755181852646,-400.0,0.00027397,2]
[379193748,1755181852656,-400.0,0.00027397,2]
[379193749,1755181852666,-400.0,0.00027397,2]
[379193750,1755181852677,-400.0,0.00027397,2]
[379193751,1755181852687,-1004.86,0.00027397,2]
[379193752,1755181852696,-400.0,0.00027397,2]
[379193753,1755181852706,-400.0,0.00027397,2]
[379193754,1755181852715,-2529.700673,0.00027397,7]
[379193755,1755181852725,-400.0,0.00027397,2]
[379193756,1755181852736,-400.0,0.00027397,2]
[379193757,1755181852746,-400.0,0.00027397,2]
[379193758,1755181852756,-3399.96,0.00027397,2]
[379193759,1755181852766,-1136.32,0.00027397,2]
[379193760,1755181852776,-3091.74,0.00027397,2]
[379193761,1755181852786,-400.0,0.00027397,2]
[379193762,1755181852795,-1484.77,0.00027397,2]
[379193763,1755181852805,-2806.29,0.00027397,2]
[379193764,1755181852815,-1925.61,0.00027397,2]
[379193765,1755181852825,-1050.51,0.00027397,2]
[379193766,1755181852835,-400.0,0.00027397,2]
[379193767,1755181852846,-71.43797862,0.00027397,2]
[379193768,1755181854181,-781.14202138,0.00027397,2]
[379193769,1755181854195,-906.05,0.00027397,2]
[379193770,1755181854211,-4589.17,0.00027397,2]
[379193771,1755181854225,-400.0,0.00027397,2]
[379193772,1755181854241,-2160.63,0.00027397,2]
[379193773,1755181854256,-606.37,0.00027397,2]
[379193774,1755181854272,-150.0,0.00027397,2]
[379193775,1755181854288,-400.0,0.00027397,2]
[379193776,1755181854303,-1425.47,0.00027397,2]
[379193777,1755181854319,-400.0,0.00027397,2]
[379193778,1755181854333,-2765.86,0.00027397,2]
[379193779,1755181854348,-2845.15,0.00027397,2]
[379193780,1755181854363,-627.86,0.00027397,2]
[379193781,1755181854378,-2580.82,0.00027397,2]
[379193782,1755181854398,-709.31,0.00027397,2]
[379193783,1755181854413,-1413.8,0.00027397,2]
[379193784,1755181854427,-488.92,0.00027397,2]
[379193785,1755181854441,-1455.8,0.00027397,2]
[379193786,1755181854455,-484.55,0.00027397,2]
[379193787,1755181854469,-1153.31,0.00027397,2]
[379193788,1755181854484,-400.0,0.00027397,2]
[379193789,1755181854499,-1775.91,0.00027397,2]
[379193790,1755181854514,-450.57,0.00027397,2]
[379193791,1755181854528,-400.0,0.00027397,2]
[379193792,1755181854543,-1574.53,0.00027397,2]
[379193793,1755181854557,-942.79,0.00027397,2]
[379193794,1755181854572,-510.98,0.00027397,2]
[379193795,1755181854587,-1503.08,0.00027397,2]
[379193796,1755181854602,-728.03,0.00027397,2]
[379193797,1755181854617,-3521.42,0.00027397,2]
[379193798,1755181854632,-465.23,0.00027397,2]
[379193799,1755181854647,-1732.91,0.00027397,2]
[379193800,1755181854662,-400.0,0.00027397,2]
[379193801,1755181854677,-2394.61,0.00027397,2]
[379193802,1755181854692,-1415.57,0.00027397,2]
[379193803,1755181854707,-400.0,0.00027397,2]
[379193804,1755181854722,-3547.01,0.00027397,2]
[379193805,1755181854736,-400.0,0.00027397,2]
[379193806,1755181854751,-400.79,0.00027397,2]
[379193807,1755181854766,-400.0,0.00027397,2]
[379193808,1755181854781,-437.75,0.00027397,2]
[379193809,1755181854795,-400.0,0.00027397,2]
[379193810,1755181854810,-2922.91,0.00027397,2]
[379193811,1755181854824,-400.0,0.00027397,2]
[379193812,1755181854839,-500.0,0.00027397,2]
[379193813,1755181854853,-1394.36,0.00027397,2]
[379193814,1755181854868,-500.0,0.00027397,2]
[379193815,1755181854884,-400.0,0.00027397,2]
[379193816,1755181854898,-2310.72,0.00027397,2]
[379193817,1755181854913,-500.0,0.00027397,2]
[379193818,1755181854927,-1310.28,0.00027397,2]
[379193819,1755181854941,-500.0,0.00027397,2]
[379193820,1755181854956,-500.0,0.00027397,2]
[379193821,1755181854969,-500.0,0.00027397,2]
[379193822,1755181854982,-500.0,0.00027397,2]
[379193823,1755181854996,-400.0,0.00027397,2]
[379193824,1755181855012,-1451.65,0.00027397,2]
[379193825,1755181855026,-400.0,0.00027397,2]
[379193826,1755181855039,-836.52,0.00027397,2]
[379193827,1755181855054,-1110.31,0.00027397,2]
[379193828,1755181855068,-539.74,0.00027397,2]
[379193829,1755181855084,-151.0,0.00027397,7]
[379193830,1755181855098,-881.34,0.00027397,2]
[379193831,1755181855112,-925.3,0.00027397,2]
[379193832,1755181855126,-2730.45,0.00027397,2]
[379193833,1755181855141,-400.0,0.00027397,2]
[379193834,1755181855155,-1704.22,0.00027397,2]
[379193835,1755181855170,-917.8,0.00027397,2]
[379193836,1755181855185,-3547.69,0.00027397,2]
[379193837,1755181855198,-400.0,0.00027397,2]
[379193838,1755181855212,-2386.82,0.00027397,2]
[379193839,1755181855227,-400.0,0.00027397,2]
[379193840,1755181855241,-846.92,0.00027397,2]
[379193841,1755181855255,-932.79,0.00027397,2]
[379193842,1755181855270,-650.9,0.00027397,2]
[379193843,1755181855284,-400.0,0.00027397,2]
[379193844,1755181855299,-400.0,0.00027397,2]
[379193845,1755181855312,-500.0,0.00027397,2]
[379193846,1755181855326,-2978.9,0.00027397,2]
[379193847,1755181855340,-353.66,0.00027397,2]
[379193848,1755181855353,-3323.21,0.00027397,2]
[379193849,1755181855367,-924.37,0.00027397,2]
[379193850,1755181855381,-3483.36,0.00027397,2]
[379193851,1755181855397,-467.89,0.00027397,2]
[379193852,1755181855410,-400.0,0.00027397,2]
[379193853,1755181855424,-664.71,0.00027397,2]
[379193854,1755181855437,-2693.55,0.00027397,2]
[379193855,1755181855459,-2317.35,0.00027397,2]
[379193856,1755181855472,-400.0,0.00027397,2]
[379193857,1755181855486,-1942.66,0.00027397,2]
[379193858,1755181855500,-616.62,0.00027397,2]
[379193859,1755181855513,-416.81499118,0.00027397,2]
[379193860,1755181855527,-400.0,0.00027397,2]
[379193861,1755181855541,-1531.46,0.00027397,2]
[379193862,1755181855555,-401.07,0.00027397,2]
[379193863,1755181855569,-400.0,0.00027397,2]
[379193864,1755181855583,-400.0,0.00027397,2]
[379193865,1755181855596,-400.0,0.00027397,2]
[379193866,1755181855611,-2001.95,0.00027397,2]
[379193867,1755181855625,-400.0,0.00027397,2]
[379193868,1755181855641,-2243.03,0.00027397,2]
[379193869,1755181855655,-1145.02,0.00027397,2]
[379193870,1755181855668,-400.0,0.00027397,2]
[379193871,1755181855682,-400.0,0.00027397,2]
[379193872,1755181855696,-400.0,0.00027397,2]
[379193873,1755181855710,-400.0,0.00027397,2]
[379193874,1755181855724,-401.14,0.00027397,2]
[379193875,1755181855738,-400.0,0.00027397,2]
[379193876,1755181855756,-400.0,0.00027397,2]
[379193877,1755181855770,-500.0,0.00027397,2]
[379193878,1755181855784,-471.48790317,0.00027397,2]
[379193879,1755181855798,-567.53,0.00027397,2]
[379193880,1755181855812,-2861.98,0.00027397,2]
[379193881,1755181855826,-1995.43,0.00027397,2]
[379193882,1755181855839,-2511.65,0.00027397,2]
[379193883,1755181855853,-1052.57,0.00027397,2]
[379193884,1755181855867,-151.0,0.00027397,7]
[379193885,1755181855881,-1532.19,0.00027397,2]
[379193886,1755181855897,-400.0,0.00027397,2]
[379193887,1755181855910,-1115.28,0.00027397,2]
[379193888,1755181855923,-400.0,0.00027397,2]
[379193889,1755181855937,-1151.2,0.00027397,2]
[379193890,1755181855951,-736.19,0.00027397,2]
[379193891,1755181855964,-400.0,0.00027397,2]
[379193892,1755181855979,-660.94,0.00027397,2]
[379193893,1755181855991,-400.0,0.00027397,2]
[379193894,1755181856008,-2094.85,0.00027397,2]
[379193895,1755181856022,-400.0,0.00027397,2]
[379193896,1755181856035,-400.0,0.00027397,2]
[379193897,1755181856050,-1356.06,0.00027397,2]
[379193898,1755181856063,-400.0,0.00027397,2]
[379193899,1755181856077,-2092.98,0.00027397,2]
[379193900,1755181856091,-1030.16,0.00027397,2]
[379193901,1755181856104,-400.0,0.00027397,2]
[379193902,1755181856118,-600.78,0.00027397,2]
[379193903,1755181856131,-400.0,0.00027397,2]
[379193904,1755181856148,-400.0,0.00027397,2]
[379193905,1755181856161,-2071.98,0.00027397,2]
[379193906,1755181856174,-400.0,0.00027397,2]
[379193907,1755181856188,-400.0,0.00027397,2]
[379193908,1755181856201,-3730.89,0.00027397,2]
[379193909,1755181856215,-1562.68,0.00027397,2]
[379193910,1755181856228,-2014.79,0.00027397,2]
[379193911,1755181856241,-2607.88,0.00027397,2]
[379193912,1755181856255,-273.11907844,0.00027397,2]
[379193913,1755181856268,-158.451887,0.00027397,7]
[379193914,1755181856282,-400.0,0.00027397,2]
[379193915,1755181856296,-1583.45,0.00027397,2]
[379193916,1755181856309,-2967.31,0.00027397,2]
[379193917,1755181856323,-424.82,0.00027397,2]
[379193918,1755181856336,-1397.71,0.00027397,2]
[379193919,1755181856350,-400.0,0.00027397,2]
[379193920,1755181856365,-400.0,0.00027397,2]
[379193921,1755181856379,-635.86,0.00027397,2]
[379193922,1755181856396,-400.0,0.00027397,2]
[379193923,1755181856410,-400.0,0.00027397,2]
[379193924,1755181856424,-400.0,0.00027397,2]
[379193925,1755181856438,-400.0,0.00027397,2]
[379193926,1755181856451,-946.64,0.00027397,2]
[379193927,1755181856465,-495.24,0.00027397,2]
[379193928,1755181856479,-400.0,0.00027397,2]
[379193929,1755181856492,-400.0,0.00027397,2]
[379193930,1755181856506,-500.0,0.00027397,2]
[379193931,1755181856520,-263.97,0.00027397,2]
[379193932,1755181856534,-620.58,0.00027397,2]
[379193933,1755181856548,-400.0,0.00027397,2]
[379193934,1755181856561,-789.41,0.00027397,2]
[379193935,1755181856575,-1550.76,0.00027397,2]
[379193936,1755181856589,-400.0,0.00027397,2]
[379193937,1755181856602,-400.0,0.00027397,2]
[379193938,1755181856616,-3373.12,0.00027397,2]
[379193939,1755181856630,-855.52,0.00027397,2]
[379193940,1755181856647,-437.4,0.00027397,2]
[379193941,1755181856660,-400.0,0.00027397,2]
[379193942,1755181856674,-475.21,0.00027397,2]
[379193943,1755181856687,-400.0,0.00027397,2]
[379193944,1755181856701,-400.0,0.00027397,2]
[379193945,1755181856715,-400.0,0.00027397,2]
[379193946,1755181856729,-400.0,0.00027397,2]
[379193947,1755181856741,-413.5,0.00027397,2]
[379193948,1755181856752,-453.17,0.00027397,2]
[379193949,1755181856762,-400.0,0.00027397,2]
[379193950,1755181856772,-636.48,0.00027397,2]
[379193951,1755181856781,-406.32071,0.00027397,2]
[379193952,1755181856790,-400.0,0.00027397,2]
[379193953,1755181856801,-1449.64,0.00027397,2]
[379193954,1755181856811,-400.0,0.00027397,2]
[379193955,1755181856821,-400.0,0.00027397,2]
[379193956,1755181856830,-1099.63,0.00027397,2]
[379193957,1755181856839,-400.0,0.00027397,2]
[379193958,1755181856849,-420.47,0.00027397,2]
[379193959,1755181856859,-2614.52,0.00027397,2]
[379193960,1755181856869,-400.0,0.00027397,2]
[379193961,1755181856878,-1227.08,0.00027397,2]
[379193962,1755181856889,-1391.47,0.00027397,2]
[379193963,1755181856899,-200.0,0.00027397,2]
[379193964,1755181856908,-972.65,0.00027397,2]
[379193965,1755181856918,-400.0,0.00027397,2]
[379193966,1755181856927,-1379.76,0.00027397,2]
[379193967,1755181856937,-400.0,0.00027397,2]
[379193968,1755181856946,-400.0,0.00027397,2]
[379193969,1755181856957,-1396.34,0.00027397,2]
[379193970,1755181856967,-1095.21,0.00027397,2]
[379193971,1755181856977,-647.05,0.00027397,2]
[379193972,1755181856986,-400.0,0.00027397,2]
[379193973,1755181856996,-932.24,0.00027397,2]
[379193974,1755181857008,-400.0,0.00027397,2]
[379193975,1755181857020,-400.0,0.00027397,2]
[379193976,1755181857030,-792.1,0.00027397,2]
[379193977,1755181857039,-560.95,0.00027397,2]
[379193978,1755181857048,-400.0,0.00027397,2]
[379193979,1755181857058,-400.0,0.00027397,2]
[379193980,1755181857067,-400.0,0.00027397,2]
[379193981,1755181857076,-151.0,0.00027397,3]
[379193982,1755181857086,-151.0,0.00027397,3]